[Event "*** Titled Tuesday Blitz"]
[Site "Chess.com"]
[Date "2021.03.09"]
[Round "11"]
[White "PavelChernomordik"]
[Black "Anton_Demchenko"]
[Result "0-1"]
[WhiteElo "2422"]
[BlackElo "2842"]
[TimeControl "180+1"]
[EndTime "12:10:05 PST"]
[Termination "Anton_Demchenko won by resignation"]

1. e4 {[%clk 0:03:00.9]} 1... e5 {[%clk 0:02:59.4]} 2. Nf3 {[%clk 0:02:59.4]}
2... Nc6 {[%clk 0:02:59.9]} 3. Bc4 {[%clk 0:02:58.6]} 3... Nf6 {[%clk
0:02:59.3]} 4. Ng5 {[%clk 0:02:58.2]} 4... d5 {[%clk 0:02:58.6]} 5. exd5 {[%clk
0:02:58.1]} 5... Na5 {[%clk 0:02:59.3]} 6. Bb5+ {[%clk 0:02:57.9]} 6... c6
{[%clk 0:02:59.8]} 7. dxc6 {[%clk 0:02:58.1]} 7... bxc6 {[%clk 0:03:00.7]} 8.
Bd3 {[%clk 0:02:58.4]} 8... Nd5 {[%clk 0:02:58.1]} 9. Nf3 {[%clk 0:02:53.2]}
9... Bd6 {[%clk 0:02:57.8]} 10. O-O {[%clk 0:02:47.4]} 10... O-O {[%clk
0:02:58.3]} 11. Re1 {[%clk 0:02:42.6]} 11... f5 {[%clk 0:02:57.6]} 12. Bf1
{[%clk 0:02:11.4]} 12... e4 {[%clk 0:02:56.4]} 13. Nd4 {[%clk 0:02:10.7]} 13...
Qf6 {[%clk 0:02:35.9]} 14. c3 {[%clk 0:02:09.4]} 14... Bd7 {[%clk 0:02:22.5]}
15. d3 {[%clk 0:02:04.3]} 15... Rae8 {[%clk 0:02:22.7]} 16. Qa4 {[%clk
0:01:49.8]} 16... Nb7 {[%clk 0:01:52.6]} 17. Qxa7 {[%clk 0:01:48.2]} 17... Nc5
{[%clk 0:01:53.2]} 18. b4 {[%clk 0:01:30.1]} 18... Ra8 {[%clk 0:01:50.4]} 19.
Qxa8 {[%clk 0:01:25.2]} 19... Rxa8 {[%clk 0:01:49.9]} 20. bxc5 {[%clk
0:01:26.1]} 20... Bxc5 {[%clk 0:01:50.5]} 21. Bb2 {[%clk 0:01:22]} 21... Bxd4
{[%clk 0:01:43]} 22. cxd4 {[%clk 0:01:21.4]} 22... Rb8 {[%clk 0:01:43.9]} 23.
dxe4 {[%clk 0:01:13.9]} 23... fxe4 {[%clk 0:01:41.3]} 24. Re2 {[%clk 0:01:08]}
24... Bg4 {[%clk 0:01:38]} 25. Rc2 {[%clk 0:01:00.5]} 25... Rxb2 {[%clk
0:00:54.2]} 26. Rxb2 {[%clk 0:00:54.7]} 26... Qxd4 {[%clk 0:00:54.7]} 27. Rb8+
{[%clk 0:00:42.6]} 27... Kf7 {[%clk 0:00:55.3]} 28. Nc3 {[%clk 0:00:40.4]} 28...
Qxc3 {[%clk 0:00:47.4]} 29. Rab1 {[%clk 0:00:36.6]} 29... e3 {[%clk 0:00:43.4]}
30. R8b2 {[%clk 0:00:31.9]} 30... Bf5 {[%clk 0:00:39.2]} 31. Rb7+ {[%clk
0:00:28.8]} 31... Kg6 {[%clk 0:00:39.7]} 32. R1b2 {[%clk 0:00:27.9]} 32... Qc1
{[%clk 0:00:31.8]} 33. R7b3 {[%clk 0:00:21]} 33... Kh6 {[%clk 0:00:18]} 34. g3
{[%clk 0:00:15.9]} 34... Bc2 {[%clk 0:00:15.1]} 35. Rb7 {[%clk 0:00:10.5]} 35...
Bd3 {[%clk 0:00:13.5]} 36. Rb1 {[%clk 0:00:08.7]} 36... Bxb1 {[%clk 0:00:13.4]}
37. Kg2 {[%clk 0:00:07.2]} 37... Be4+ {[%clk 0:00:12.1]} 0-1

[Event "*** Titled Tuesday Blitz"]
[Site "Chess.com"]
[Date "2021.03.09"]
[Round "11"]
[White "Trickster_Pony"]
[Black "night_player"]
[Result "0-1"]
[WhiteElo "1484"]
[BlackElo "2163"]
[TimeControl "180+1"]
[EndTime "12:10:05 PST"]
[Termination "night_player won on time"]

1. c4 {[%clk 0:03:00.9]} 1... e5 {[%clk 0:02:57.5]} 2. g3 {[%clk 0:03:00.6]}
2... Nf6 {[%clk 0:02:56.9]} 3. Bg2 {[%clk 0:03:00.4]} 3... Bc5 {[%clk
0:02:56.8]} 4. Nc3 {[%clk 0:02:58.8]} 4... c6 {[%clk 0:02:56.4]} 5. e3 {[%clk
0:02:59]} 5... O-O {[%clk 0:02:51.6]} 6. Nge2 {[%clk 0:02:58.4]} 6... Bb6 {[%clk
0:02:48.8]} 7. O-O {[%clk 0:02:57.6]} 7... d5 {[%clk 0:02:48.1]} 8. cxd5 {[%clk
0:02:46.6]} 8... cxd5 {[%clk 0:02:49]} 9. d4 {[%clk 0:02:44.8]} 9... exd4 {[%clk
0:02:39.6]} 10. Nxd4 {[%clk 0:02:41.8]} 10... Nc6 {[%clk 0:02:39.4]} 11. Nxc6
{[%clk 0:02:40.2]} 11... bxc6 {[%clk 0:02:38.9]} 12. Qa4 {[%clk 0:02:39.3]}
12... Bb7 {[%clk 0:02:32.5]} 13. Rd1 {[%clk 0:02:37.6]} 13... Qe7 {[%clk
0:02:28.2]} 14. b3 {[%clk 0:02:31.9]} 14... Rfd8 {[%clk 0:02:28]} 15. Ba3 {[%clk
0:02:31.3]} 15... Qe5 {[%clk 0:02:19]} 16. Rac1 {[%clk 0:02:20.2]} 16... h6
{[%clk 0:01:48]} 17. Ne2 {[%clk 0:02:11.1]} 17... Ne4 {[%clk 0:01:24.9]} 18. Nd4
{[%clk 0:01:49.5]} 18... Rac8 {[%clk 0:01:11.8]} 19. Bc5 {[%clk 0:01:30]} 19...
Nxc5 {[%clk 0:01:05.6]} 20. Rxc5 {[%clk 0:01:20.2]} 20... Bxc5 {[%clk
0:01:04.8]} 21. b4 {[%clk 0:01:09.8]} 21... Bb6 {[%clk 0:01:00.3]} 22. b5 {[%clk
0:00:44.2]} 22... c5 {[%clk 0:00:56.9]} 23. Nc6 {[%clk 0:00:43.3]} 23... Bxc6
{[%clk 0:00:50.1]} 24. bxc6 {[%clk 0:00:44.2]} 24... d4 {[%clk 0:00:47.6]} 25.
exd4 {[%clk 0:00:35]} 25... Rxd4 {[%clk 0:00:45.6]} 26. Rxd4 {[%clk 0:00:33.5]}
26... Qxd4 {[%clk 0:00:46.5]} 27. Qa6 {[%clk 0:00:30]} 27... Rc7 {[%clk
0:00:45]} 28. h4 {[%clk 0:00:26.3]} 28... c4 {[%clk 0:00:42.5]} 29. Qa3 {[%clk
0:00:13.1]} 29... Qxf2+ {[%clk 0:00:39.2]} 30. Kh2 {[%clk 0:00:12.4]} 30... Qe3
{[%clk 0:00:34.9]} 31. Qd6 {[%clk 0:00:12.1]} 31... Qe7 {[%clk 0:00:31]} 32. Qd1
{[%clk 0:00:09.8]} 32... c3 {[%clk 0:00:29.4]} 33. Qc2 {[%clk 0:00:09.7]} 33...
Qe5 {[%clk 0:00:26.5]} 34. Qd1 {[%clk 0:00:09.6]} 34... Kh7 {[%clk 0:00:21]} 35.
Qc2+ {[%clk 0:00:09]} 35... g6 {[%clk 0:00:20.7]} 36. h5 {[%clk 0:00:08.8]}
36... Qd4 {[%clk 0:00:14.1]} 37. hxg6+ {[%clk 0:00:07.3]} 37... fxg6 {[%clk
0:00:15]} 38. Qb3 {[%clk 0:00:03.5]} 38... Qd2 {[%clk 0:00:14.4]} 39. Qe6 {[%clk
0:00:01.7]} 39... c2 {[%clk 0:00:13.5]} 0-1

[Event "*** Titled Tuesday Blitz"]
[Site "Chess.com"]
[Date "2021.03.09"]
[Round "11"]
[White "Olga_Girya"]
[Black "queen_iryna"]
[Result "1-0"]
[WhiteElo "2457"]
[BlackElo "2340"]
[TimeControl "180+1"]
[EndTime "12:10:06 PST"]
[Termination "Olga_Girya won by resignation"]

1. d4 {[%clk 0:03:00.9]} 1... d6 {[%clk 0:02:59.9]} 2. e4 {[%clk 0:03:00.2]}
2... Nf6 {[%clk 0:02:59.2]} 3. Nc3 {[%clk 0:02:59.8]} 3... e5 {[%clk 0:02:58.5]}
4. dxe5 {[%clk 0:02:58.5]} 4... dxe5 {[%clk 0:02:59.4]} 5. Qxd8+ {[%clk
0:02:58.5]} 5... Kxd8 {[%clk 0:03:00.3]} 6. Bc4 {[%clk 0:02:58.7]} 6... Ke8
{[%clk 0:02:59.9]} 7. Nf3 {[%clk 0:02:57.3]} 7... Bd6 {[%clk 0:02:59.9]} 8. Be3
{[%clk 0:02:54]} 8... a6 {[%clk 0:02:59.6]} 9. O-O-O {[%clk 0:02:53.1]} 9... b5
{[%clk 0:02:54.4]} 10. Bb3 {[%clk 0:02:48.4]} 10... Bb7 {[%clk 0:02:48.5]} 11.
Ng5 {[%clk 0:02:44.3]} 11... Rf8 {[%clk 0:02:44.2]} 12. f3 {[%clk 0:02:34.3]}
12... Nbd7 {[%clk 0:02:37.1]} 13. Nd5 {[%clk 0:02:27]} 13... h6 {[%clk
0:02:18.3]} 14. Nxf6+ {[%clk 0:02:13.1]} 14... Nxf6 {[%clk 0:02:19.2]} 15. Nh3
{[%clk 0:02:12.9]} 15... Ke7 {[%clk 0:02:18.1]} 16. Nf2 {[%clk 0:02:10.9]} 16...
Rfd8 {[%clk 0:02:06.6]} 17. Nd3 {[%clk 0:02:08.7]} 17... Nd7 {[%clk 0:01:59.5]}
18. Rhe1 {[%clk 0:01:53.3]} 18... a5 {[%clk 0:01:45]} 19. a3 {[%clk 0:01:34.7]}
19... c5 {[%clk 0:01:31.6]} 20. Bd5 {[%clk 0:01:32.7]} 20... Bxd5 {[%clk
0:01:25.6]} 21. exd5 {[%clk 0:01:32.9]} 21... c4 {[%clk 0:01:20]} 22. Nf2 {[%clk
0:01:28.4]} 22... b4 {[%clk 0:01:14.8]} 23. a4 {[%clk 0:01:19.1]} 23... Bc5
{[%clk 0:01:02.4]} 24. Bxc5+ {[%clk 0:01:04.3]} 24... Nxc5 {[%clk 0:01:03.3]}
25. Rxe5+ {[%clk 0:01:02.4]} 25... Kd6 {[%clk 0:01:03.5]} 26. f4 {[%clk
0:00:59.9]} 26... Nxa4 {[%clk 0:00:56.2]} 27. Ne4+ {[%clk 0:00:46.4]} 27... Kd7
{[%clk 0:00:56.3]} 28. b3 {[%clk 0:00:42.5]} 28... cxb3 {[%clk 0:00:53.7]} 29.
cxb3 {[%clk 0:00:43.1]} 29... Rdc8+ {[%clk 0:00:50]} 30. Kd2 {[%clk 0:00:41.7]}
30... Nc3 {[%clk 0:00:48.8]} 31. Re1 {[%clk 0:00:38.6]} 31... Nxe4+ {[%clk
0:00:44]} 32. R1xe4 {[%clk 0:00:38.5]} 32... Re8 {[%clk 0:00:41.7]} 33. Rxe8
{[%clk 0:00:32]} 33... Rxe8 {[%clk 0:00:42.6]} 34. Rxe8 {[%clk 0:00:32.1]} 34...
Kxe8 {[%clk 0:00:43.5]} 35. Kd3 {[%clk 0:00:32.5]} 35... Kd7 {[%clk 0:00:42.2]}
36. Kd4 {[%clk 0:00:30.4]} 36... Kd6 {[%clk 0:00:42.3]} 37. Kc4 {[%clk
0:00:30.5]} 37... g6 {[%clk 0:00:38.8]} 38. g3 {[%clk 0:00:26.1]} 38... f6
{[%clk 0:00:38.5]} 39. Kd4 {[%clk 0:00:24.2]} 39... g5 {[%clk 0:00:35.4]} 40. h4
{[%clk 0:00:23.8]} 40... gxh4 {[%clk 0:00:19.3]} 41. gxh4 {[%clk 0:00:23.9]}
41... h5 {[%clk 0:00:15.7]} 42. Kc4 {[%clk 0:00:19.7]} 42... f5 {[%clk
0:00:13.8]} 43. Kd4 {[%clk 0:00:20]} 43... Kd7 {[%clk 0:00:12.7]} 44. Kc5 {[%clk
0:00:15.9]} 44... a4 {[%clk 0:00:12]} 45. Kxb4 {[%clk 0:00:15.7]} 45... axb3
{[%clk 0:00:12.5]} 46. Kxb3 {[%clk 0:00:16]} 46... Kd6 {[%clk 0:00:13.4]} 47.
Kc4 {[%clk 0:00:16.4]} 1-0

[Event "*** Titled Tuesday Blitz"]
[Site "Chess.com"]
[Date "2021.03.09"]
[Round "11"]
[White "hansen"]
[Black "goldihouse"]
[Result "0-1"]
[WhiteElo "2866"]
[BlackElo "2625"]
[TimeControl "180+1"]
[EndTime "12:10:09 PST"]
[Termination "goldihouse won on time"]

1. e4 {[%clk 0:02:50.6]} 1... e6 {[%clk 0:03:00]} 2. d4 {[%clk 0:02:46.9]} 2...
d5 {[%clk 0:03:00.9]} 3. Nc3 {[%clk 0:02:44.1]} 3... Nf6 {[%clk 0:03:00.9]} 4.
Bg5 {[%clk 0:02:43.3]} 4... dxe4 {[%clk 0:03:00.9]} 5. Nxe4 {[%clk 0:02:34.8]}
5... Be7 {[%clk 0:03:00.8]} 6. Bxf6 {[%clk 0:02:34.9]} 6... gxf6 {[%clk
0:03:01]} 7. Nf3 {[%clk 0:02:31]} 7... f5 {[%clk 0:03:00.2]} 8. Nc3 {[%clk
0:02:30.8]} 8... a6 {[%clk 0:03:00.5]} 9. g3 {[%clk 0:02:31.2]} 9... b5 {[%clk
0:03:00.4]} 10. Bg2 {[%clk 0:02:31.9]} 10... Bb7 {[%clk 0:03:00.1]} 11. O-O
{[%clk 0:02:32.7]} 11... O-O {[%clk 0:03:00.2]} 12. Ne5 {[%clk 0:02:13.5]} 12...
Bxg2 {[%clk 0:02:58.4]} 13. Kxg2 {[%clk 0:02:14.4]} 13... Bf6 {[%clk 0:02:57.2]}
14. Qf3 {[%clk 0:02:13.8]} 14... Ra7 {[%clk 0:02:56.5]} 15. Rad1 {[%clk
0:02:05.9]} 15... Qe7 {[%clk 0:02:50.7]} 16. Ne2 {[%clk 0:02:04.5]} 16... c5
{[%clk 0:02:48.5]} 17. c3 {[%clk 0:01:57.9]} 17... cxd4 {[%clk 0:02:48.1]} 18.
cxd4 {[%clk 0:01:58.8]} 18... Rc7 {[%clk 0:02:41.4]} 19. Nf4 {[%clk 0:01:58.8]}
19... Nd7 {[%clk 0:02:38.6]} 20. Rfe1 {[%clk 0:01:59.2]} 20... Nxe5 {[%clk
0:02:35.1]} 21. dxe5 {[%clk 0:01:56.1]} 21... Bg7 {[%clk 0:02:30.4]} 22. Nh5
{[%clk 0:01:51.3]} 22... Kh8 {[%clk 0:02:23.9]} 23. h4 {[%clk 0:01:18.7]} 23...
Rfc8 {[%clk 0:02:16.5]} 24. Qe3 {[%clk 0:01:08.7]} 24... Rc2 {[%clk 0:02:08.9]}
25. Rd6 {[%clk 0:01:07.2]} 25... Qb7+ {[%clk 0:02:01.2]} 26. Kh3 {[%clk
0:00:52.4]} 26... h6 {[%clk 0:01:47.6]} 27. Red1 {[%clk 0:00:49.9]} 27... Qe4
{[%clk 0:01:39.2]} 28. Qxe4 {[%clk 0:00:22.3]} 28... fxe4 {[%clk 0:01:40.1]} 29.
Nxg7 {[%clk 0:00:15.4]} 29... Kxg7 {[%clk 0:01:38.9]} 30. R1d2 {[%clk
0:00:16.1]} 30... Rxd2 {[%clk 0:01:32.3]} 31. Rxd2 {[%clk 0:00:17]} 31... Rc5
{[%clk 0:01:32.5]} 32. Re2 {[%clk 0:00:10.5]} 32... Rxe5 {[%clk 0:01:30.9]} 33.
f4 {[%clk 0:00:11]} 33... Rd5 {[%clk 0:01:30.8]} 34. Rxe4 {[%clk 0:00:11]} 34...
Rd2 {[%clk 0:01:30.8]} 35. Rb4 {[%clk 0:00:11.5]} 35... h5 {[%clk 0:01:27.3]}
36. a4 {[%clk 0:00:11.1]} 36... bxa4 {[%clk 0:01:24.4]} 37. Rxa4 {[%clk
0:00:12]} 37... Rxb2 {[%clk 0:01:24.2]} 38. Rxa6 {[%clk 0:00:12.6]} 38... Kg6
{[%clk 0:01:23]} 39. Ra5 {[%clk 0:00:13]} 39... f6 {[%clk 0:01:13]} 40. Rc5
{[%clk 0:00:08.6]} 40... Re2 {[%clk 0:01:10.6]} 41. f5+ {[%clk 0:00:07.2]} 41...
exf5 {[%clk 0:01:08.9]} 42. Rc8 {[%clk 0:00:05.6]} 42... f4 {[%clk 0:00:54.6]}
43. gxf4 {[%clk 0:00:06.1]} 43... Kf5 {[%clk 0:00:53.8]} 44. Rc5+ {[%clk
0:00:05.4]} 44... Kxf4 {[%clk 0:00:53.4]} 45. Rxh5 {[%clk 0:00:05.6]} 45... Re3+
{[%clk 0:00:53.8]} 46. Kg2 {[%clk 0:00:05.7]} 46... Kg4 {[%clk 0:00:53.1]} 47.
Rh8 {[%clk 0:00:05.6]} 47... Re2+ {[%clk 0:00:52.6]} 48. Kf1 {[%clk 0:00:06.1]}
48... Rh2 {[%clk 0:00:52]} 49. Rg8+ {[%clk 0:00:03.7]} 49... Kf3 {[%clk
0:00:48.7]} 50. Rg6 {[%clk 0:00:02.1]} 50... Rh1+ {[%clk 0:00:48.1]} 51. Rg1
{[%clk 0:00:02.5]} 51... Rxh4 {[%clk 0:00:40.8]} 52. Ke1 {[%clk 0:00:02.3]}
52... Re4+ {[%clk 0:00:40.4]} 53. Kd2 {[%clk 0:00:02.5]} 53... f5 {[%clk
0:00:33.1]} 0-1

[Event "*** Titled Tuesday Blitz"]
[Site "Chess.com"]
[Date "2021.03.09"]
[Round "11"]
[White "DinaBelenkaya"]
[Black "guillembaches"]
[Result "1-0"]
[WhiteElo "2361"]
[BlackElo "2445"]
[TimeControl "180+1"]
[EndTime "12:10:09 PST"]
[Termination "DinaBelenkaya won on time"]

1. e4 {[%clk 0:03:00.9]} 1... c5 {[%clk 0:02:58.4]} 2. Nc3 {[%clk 0:03:00]} 2...
Nc6 {[%clk 0:02:57.6]} 3. g3 {[%clk 0:02:57.4]} 3... g6 {[%clk 0:02:56.6]} 4.
Bg2 {[%clk 0:02:55.2]} 4... Bg7 {[%clk 0:02:56.9]} 5. d3 {[%clk 0:02:46.9]} 5...
e6 {[%clk 0:02:55.8]} 6. Be3 {[%clk 0:02:47.1]} 6... Nd4 {[%clk 0:02:56.1]} 7.
Nce2 {[%clk 0:02:47.2]} 7... e5 {[%clk 0:02:50.2]} 8. c3 {[%clk 0:02:39.1]} 8...
Ne6 {[%clk 0:02:40.5]} 9. f4 {[%clk 0:02:33.3]} 9... Ne7 {[%clk 0:02:32.8]} 10.
Nf3 {[%clk 0:02:30]} 10... d6 {[%clk 0:02:28.9]} 11. Qd2 {[%clk 0:02:29.2]}
11... f5 {[%clk 0:02:23.3]} 12. fxe5 {[%clk 0:02:16.4]} 12... dxe5 {[%clk
0:02:20.4]} 13. O-O-O {[%clk 0:02:01]} 13... Qa5 {[%clk 0:01:44.5]} 14. Kb1
{[%clk 0:01:54.2]} 14... Bd7 {[%clk 0:01:37.7]} 15. Ng5 {[%clk 0:01:41.1]} 15...
h6 {[%clk 0:01:24.4]} 16. Nxe6 {[%clk 0:01:39]} 16... Bxe6 {[%clk 0:01:25.3]}
17. c4 {[%clk 0:01:24.5]} 17... Qxd2 {[%clk 0:01:19.2]} 18. Rxd2 {[%clk
0:01:25.4]} 18... Rd8 {[%clk 0:01:14.8]} 19. Bxc5 {[%clk 0:01:24.3]} 19... Bxc4
{[%clk 0:01:10]} 20. Rhd1 {[%clk 0:01:16.4]} 20... Be6 {[%clk 0:01:01.6]} 21.
exf5 {[%clk 0:01:15.6]} 21... gxf5 {[%clk 0:00:51.9]} 22. Bxb7 {[%clk
0:01:14.8]} 22... Kf7 {[%clk 0:00:38.9]} 23. d4 {[%clk 0:00:57.6]} 23... e4
{[%clk 0:00:26.9]} 24. Nf4 {[%clk 0:00:54.6]} 24... Rb8 {[%clk 0:00:20.8]} 25.
Ba6 {[%clk 0:00:48.5]} 25... Nd5 {[%clk 0:00:18.5]} 26. Rc1 {[%clk 0:00:20.1]}
26... Nxf4 {[%clk 0:00:14.2]} 27. gxf4 {[%clk 0:00:21]} 27... Bd5 {[%clk
0:00:14.4]} 28. Bc4 {[%clk 0:00:20.8]} 28... Rhd8 {[%clk 0:00:14.1]} 29. b4
{[%clk 0:00:18]} 29... a5 {[%clk 0:00:13.6]} 30. a3 {[%clk 0:00:18]} 30... axb4
{[%clk 0:00:13.7]} 31. axb4 {[%clk 0:00:18]} 31... Bf8 {[%clk 0:00:11.8]} 32.
Bxd5+ {[%clk 0:00:17.9]} 32... Rxd5 {[%clk 0:00:10.1]} 33. Rb2 {[%clk
0:00:17.1]} 33... Bg7 {[%clk 0:00:07.1]} 34. Rc4 {[%clk 0:00:13.2]} 34... Rb5
{[%clk 0:00:06.4]} 35. Kc2 {[%clk 0:00:11.5]} 35... Ke6 {[%clk 0:00:06.3]} 36.
Rb3 {[%clk 0:00:10.7]} 36... Rd7 {[%clk 0:00:06.3]} 37. Rg3 {[%clk 0:00:08.7]}
37... Kd5 {[%clk 0:00:04.9]} 38. Rcc3 {[%clk 0:00:04.9]} 38... Bxd4 {[%clk
0:00:02.5]} 39. Bxd4 {[%clk 0:00:05.5]} 39... Kxd4 {[%clk 0:00:02.5]} 40. Rc6
{[%clk 0:00:05.4]} 1-0

[Event "*** Titled Tuesday Blitz"]
[Site "Chess.com"]
[Date "2021.03.09"]
[Round "11"]
[White "annacramling"]
[Black "TimKett"]
[Result "0-1"]
[WhiteElo "2035"]
[BlackElo "2199"]
[TimeControl "180+1"]
[EndTime "12:10:09 PST"]
[Termination "TimKett won on time"]

1. d4 {[%clk 0:03:00.9]} 1... d5 {[%clk 0:02:59.3]} 2. c4 {[%clk 0:02:59.4]}
2... e6 {[%clk 0:02:58.1]} 3. Nc3 {[%clk 0:02:54.7]} 3... Nf6 {[%clk 0:02:57.8]}
4. Bg5 {[%clk 0:02:51.7]} 4... Be7 {[%clk 0:02:57.8]} 5. e3 {[%clk 0:02:51.2]}
5... h6 {[%clk 0:02:55.8]} 6. Bh4 {[%clk 0:02:49]} 6... O-O {[%clk 0:02:56.3]}
7. Bd3 {[%clk 0:02:49.1]} 7... b6 {[%clk 0:02:56.2]} 8. cxd5 {[%clk 0:02:45.9]}
8... Nxd5 {[%clk 0:02:54.1]} 9. Bxe7 {[%clk 0:02:43.7]} 9... Qxe7 {[%clk
0:02:53.7]} 10. Nf3 {[%clk 0:02:39.9]} 10... Nxc3 {[%clk 0:02:48.5]} 11. bxc3
{[%clk 0:02:39.6]} 11... Bb7 {[%clk 0:02:49]} 12. O-O {[%clk 0:02:37]} 12... c5
{[%clk 0:02:49]} 13. e4 {[%clk 0:02:36.4]} 13... cxd4 {[%clk 0:02:43.2]} 14.
cxd4 {[%clk 0:02:37.3]} 14... Nc6 {[%clk 0:02:42.2]} 15. Rc1 {[%clk 0:02:36.1]}
15... Rac8 {[%clk 0:02:40.6]} 16. Re1 {[%clk 0:02:34.9]} 16... Rfd8 {[%clk
0:02:39.9]} 17. d5 {[%clk 0:02:19.1]} 17... Nb4 {[%clk 0:02:38.4]} 18. Rxc8
{[%clk 0:02:14.2]} 18... Rxc8 {[%clk 0:02:30.7]} 19. dxe6 {[%clk 0:02:09.8]}
19... Qxe6 {[%clk 0:02:25.8]} 20. Bb5 {[%clk 0:02:05.9]} 20... Bc6 {[%clk
0:01:33.5]} 21. Nd4 {[%clk 0:01:53.9]} 21... Qxa2 {[%clk 0:01:21.4]} 22. Nxc6
{[%clk 0:01:47]} 22... Nxc6 {[%clk 0:01:19.9]} 23. Qd7 {[%clk 0:01:46.3]} 23...
Qe6 {[%clk 0:01:19.2]} 24. Qxe6 {[%clk 0:00:36.6]} 24... fxe6 {[%clk 0:01:18.7]}
25. Rc1 {[%clk 0:00:37]} 25... Ne7 {[%clk 0:01:14.5]} 26. Rxc8+ {[%clk
0:00:37.1]} 26... Nxc8 {[%clk 0:01:13.4]} 27. Bd7 {[%clk 0:00:38]} 27... Nd6
{[%clk 0:01:06.8]} 28. Bxe6+ {[%clk 0:00:38.2]} 28... Kf8 {[%clk 0:01:06.5]} 29.
Kf1 {[%clk 0:00:37.7]} 29... Ke7 {[%clk 0:01:05.1]} 30. Bd5 {[%clk 0:00:37.4]}
30... b5 {[%clk 0:00:49.4]} 31. Ke2 {[%clk 0:00:36.2]} 31... a5 {[%clk
0:00:47.4]} 32. Kd3 {[%clk 0:00:34.7]} 32... g5 {[%clk 0:00:32.3]} 33. g3 {[%clk
0:00:30.6]} 33... g4 {[%clk 0:00:30.3]} 34. Bc6 {[%clk 0:00:23.2]} 34... Ke6
{[%clk 0:00:27]} 35. Kd4 {[%clk 0:00:16.4]} 35... b4 {[%clk 0:00:23.6]} 36. Ba4
{[%clk 0:00:09.2]} 36... Nb7 {[%clk 0:00:16.1]} 37. Ke3 {[%clk 0:00:05.7]} 37...
Ke5 {[%clk 0:00:15.5]} 38. f4+ {[%clk 0:00:03.1]} 38... gxf3 {[%clk 0:00:15.1]}
39. Kxf3 {[%clk 0:00:03.6]} 39... Nc5 {[%clk 0:00:15.4]} 40. Bc2 {[%clk
0:00:03.9]} 40... b3 {[%clk 0:00:15.3]} 41. Bb1 {[%clk 0:00:04]} 41... a4 {[%clk
0:00:15.3]} 42. Ke3 {[%clk 0:00:03]} 42... a3 {[%clk 0:00:15.5]} 43. h4 {[%clk
0:00:01.4]} 43... a2 {[%clk 0:00:15.3]} 0-1

[Event "*** Titled Tuesday Blitz"]
[Site "Chess.com"]
[Date "2021.03.09"]
[Round "11"]
[White "dusanacns"]
[Black "Kretov_Evgenij"]
[Result "1-0"]
[WhiteElo "2730"]
[BlackElo "2557"]
[TimeControl "180+1"]
[EndTime "12:10:10 PST"]
[Termination "dusanacns won by checkmate"]

1. g3 {[%clk 0:03:00.9]} 1... c5 {[%clk 0:02:59.5]} 2. Bg2 {[%clk 0:03:01.8]}
2... Nf6 {[%clk 0:02:58.5]} 3. d3 {[%clk 0:02:59.6]} 3... d5 {[%clk 0:02:57.8]}
4. Nf3 {[%clk 0:02:59.5]} 4... Nc6 {[%clk 0:02:57]} 5. O-O {[%clk 0:03:00.1]}
5... e5 {[%clk 0:02:57.3]} 6. Nbd2 {[%clk 0:03:01]} 6... Be7 {[%clk 0:02:57.1]}
7. e4 {[%clk 0:03:01.4]} 7... O-O {[%clk 0:02:56.7]} 8. exd5 {[%clk 0:03:01.2]}
8... Nxd5 {[%clk 0:02:56.9]} 9. c3 {[%clk 0:03:01.8]} 9... Nc7 {[%clk
0:02:55.7]} 10. Nc4 {[%clk 0:03:00.1]} 10... f6 {[%clk 0:02:55.5]} 11. Re1
{[%clk 0:02:59.2]} 11... Rb8 {[%clk 0:02:54.1]} 12. d4 {[%clk 0:02:58.4]} 12...
cxd4 {[%clk 0:02:53.5]} 13. cxd4 {[%clk 0:02:58.6]} 13... exd4 {[%clk
0:02:49.8]} 14. Bf4 {[%clk 0:02:58]} 14... b5 {[%clk 0:02:42.7]} 15. Ncd2 {[%clk
0:02:08.4]} 15... Rb6 {[%clk 0:02:40.8]} 16. Nb3 {[%clk 0:02:04.2]} 16... Nd5
{[%clk 0:02:35.4]} 17. Bd2 {[%clk 0:02:00.8]} 17... Bg4 {[%clk 0:02:27.1]} 18.
h3 {[%clk 0:02:00.3]} 18... Bh5 {[%clk 0:02:27.1]} 19. g4 {[%clk 0:01:59.2]}
19... Bf7 {[%clk 0:02:26.8]} 20. Nfxd4 {[%clk 0:01:59.1]} 20... Nxd4 {[%clk
0:02:15.5]} 21. Nxd4 {[%clk 0:01:59.1]} 21... Re8 {[%clk 0:02:15.5]} 22. Ba5
{[%clk 0:01:58.1]} 22... Bc5 {[%clk 0:02:11.6]} 23. Bxb6 {[%clk 0:01:46.5]}
23... Rxe1+ {[%clk 0:01:50.6]} 24. Qxe1 {[%clk 0:01:47.4]} 24... Qxb6 {[%clk
0:01:40.8]} 25. Nb3 {[%clk 0:01:38.3]} 25... Bd6 {[%clk 0:01:28.3]} 26. Rd1
{[%clk 0:01:33.5]} 26... Nf4 {[%clk 0:01:24.1]} 27. Qe3 {[%clk 0:01:23.5]} 27...
Qb8 {[%clk 0:01:20.9]} 28. Bc6 {[%clk 0:00:59.1]} 28... h5 {[%clk 0:00:56.3]}
29. Nd4 {[%clk 0:00:54.9]} 29... Bc5 {[%clk 0:00:33.3]} 30. b4 {[%clk
0:00:40.7]} 30... Bb6 {[%clk 0:00:29.6]} 31. Qf3 {[%clk 0:00:16.1]} 31... Qe5
{[%clk 0:00:25.9]} 32. Nf5 {[%clk 0:00:10.6]} 32... Ne2+ {[%clk 0:00:20.5]} 33.
Kf1 {[%clk 0:00:10.1]} 33... Nc3 {[%clk 0:00:19.2]} 34. Rd7 {[%clk 0:00:06.5]}
34... Nb1 {[%clk 0:00:08.1]} 35. Re7 {[%clk 0:00:05.9]} 35... Qa1 {[%clk
0:00:07.3]} 36. Kg2 {[%clk 0:00:06.1]} 36... Nd2 {[%clk 0:00:07.5]} 37. Qd3
{[%clk 0:00:04.6]} 37... Qd1 {[%clk 0:00:06.5]} 38. Rxf7 {[%clk 0:00:03.9]}
38... Kxf7 {[%clk 0:00:06.5]} 39. Qd7+ {[%clk 0:00:03]} 39... Kf8 {[%clk
0:00:06.7]} 40. Qxg7# {[%clk 0:00:02.9]} 1-0